fUST/lending_fUST_20250107
["ID","MTS","AMOUNT","RATE_DAILY","PERIOD"]
[347971463,1736256634655,-1176.79,0.00019178,2]
[347971464,1736256634664,-500.0,0.00019178,2]
[347971465,1736256634674,-500.0,0.00019178,2]
[347971466,1736256634684,-504.64594482,0.00019178,2]
[347971467,1736256634694,-500.0,0.00019178,2]
[347971468,1736256634703,-843.61,0.00019178,2]
[347971469,1736256634713,-500.0,0.00019178,2]
[347971470,1736256634722,-500.0,0.00019178,2]
[347971471,1736256634732,-927.97,0.00019178,2]
[347971472,1736256634742,-247.04981872,0.00019178,2]
[347971473,1736256634751,-500.0,0.00019178,2]
[347971474,1736256634761,-500.0,0.00019178,2]
[347971475,1736256634773,-500.0,0.00019178,2]
[347971476,1736256634782,-500.0,0.00019178,2]
[347971477,1736256634792,-500.0,0.00019178,2]
[347971478,1736256634802,-500.0,0.00019178,2]
[347971479,1736256634812,-1000.0,0.00019178,2]
[347971480,1736256634822,-500.0,0.00019178,2]
[347971481,1736256634832,-502.73133192,0.00019178,2]
[347971482,1736256634841,-500.0,0.00019178,2]
[347971483,1736256634851,-500.0,0.00019178,2]
[347971484,1736256634861,-500.0,0.00019178,2]
[347971485,1736256634870,-500.0,0.00019178,2]
[347971486,1736256634880,-500.0,0.00019178,2]
[347971487,1736256634890,-500.0,0.00019178,2]
[347971488,1736256634899,-500.0,0.00019178,2]
[347971489,1736256634909,-500.0,0.00019178,2]
[347971490,1736256634918,-500.0,0.00019178,2]
[347971491,1736256634928,-500.0,0.00019178,2]
[347971492,1736256634938,-500.0,0.00019178,2]
[347971493,1736256634947,-500.0,0.00019178,2]
[347971494,1736256634956,-500.0,0.00019178,2]
[347971495,1736256634966,-505.42408712,0.00019178,2]
[347971496,1736256634975,-500.0,0.00019178,2]
[347971497,1736256634985,-500.0,0.00019178,2]
[347971498,1736256634994,-390.232353,0.00019178,2]
[347971499,1736256635004,-500.0,0.00019178,2]
[347971500,1736256635013,-500.0,0.00019178,2]
[347971501,1736256635027,-500.0,0.00019178,2]
[347971502,1736256635037,-500.0,0.00019178,2]
[347971503,1736256635046,-500.0,0.00019178,2]
[347971504,1736256635056,-500.0,0.00019178,2]
[347971505,1736256635065,-500.0,0.00019178,2]
[347971506,1736256635076,-500.0,0.00019178,2]
[347971507,1736256635087,-500.0,0.00019178,2]
[347971508,1736256635096,-500.0,0.00019178,2]
[347971509,1736256635106,-500.0,0.00019178,2]
[347971510,1736256635115,-500.0,0.00019178,2]
[347971511,1736256635125,-494.14944118,0.00019178,2]
[347971512,1736256635134,-502.57667628,0.00019178,2]
[347971513,1736256635144,-500.0,0.00019178,2]
[347971514,1736256635156,-500.0,0.00019178,2]
[347971515,1736256635166,-500.0,0.00019178,2]
[347971516,1736256635175,-500.0,0.00019178,2]
[347971517,1736256635184,-500.0,0.00019178,2]
[347971518,1736256635194,-613.12,0.00019178,2]
[347971519,1736256635203,-500.0,0.00019178,2]
[347971520,1736256635213,-500.0,0.00019178,2]
[347971521,1736256635223,-503.30847739,0.00019178,2]
[347971522,1736256635232,-500.0,0.00019178,2]
[347971523,1736256635242,-500.0,0.00019178,2]
[347971524,1736256635253,-508.04275443,0.00019178,2]
[347971525,1736256635263,-201.50115121,0.00019178,2]
[347971526,1736256635275,-871.3,0.00019178,2]
[347971527,1736256635285,-500.0,0.00019178,2]
[347971528,1736256635294,-500.0,0.00019178,2]
[347971529,1736256635304,-500.0,0.00019178,2]
[347971530,1736256635313,-500.0,0.00019178,2]
[347971531,1736256635323,-501.60424759,0.00019178,2]
[347971532,1736256635332,-500.0,0.00019178,2]
[347971533,1736256635341,-500.0,0.00019178,2]
[347971534,1736256635351,-183.83019569,0.00019178,2]
[347971535,1736256635360,-500.0,0.00019178,2]
[347971536,1736256635370,-500.0,0.00019178,2]
[347971537,1736256635379,-500.0,0.00019178,2]
[347971538,1736256635388,-500.0,0.00019178,2]
[347971539,1736256635398,-266.73128165,0.00019178,2]
[347971540,1736256635408,-1810.42,0.00019178,2]
[347971541,1736256635417,-500.0,0.00019178,2]
[347971542,1736256635426,-500.0,0.00019178,2]
[347971543,1736256635435,-500.0,0.00019178,2]
[347971544,1736256635444,-500.0,0.00019178,2]
[347971545,1736256635454,-500.0,0.00019178,2]
[347971546,1736256635463,-500.0,0.00019178,2]
[347971547,1736256635473,-500.0,0.00019178,2]
[347971548,1736256635482,-409.80602875,0.00019178,2]
[347971549,1736256635492,-502.21404374,0.00019178,2]
[347971550,1736256635501,-500.0,0.00019178,2]
[347971551,1736256635511,-500.0,0.00019178,2]
[347971552,1736256635524,-500.0,0.00019178,2]
[347971553,1736256635534,-500.0,0.00019178,2]
[347971554,1736256635543,-598.95669132,0.00019178,2]
[347971555,1736256635552,-502.26084643,0.00019178,2]
[347971556,1736256635563,-574.57,0.00019178,2]
[347971557,1736256635572,-500.0,0.00019178,2]
[347971558,1736256635581,-500.0,0.00019178,2]
[347971559,1736256635591,-564.43551354,0.00019178,2]
[347971560,1736256635600,-502.94435537,0.00019178,2]
[347971561,1736256635609,-500.0,0.00019178,2]
[347971562,1736256635619,-1000.0,0.00019178,2]
[347971563,1736256635629,-500.0,0.00019178,2]
[347971564,1736256635639,-500.0,0.00019178,2]
[347971565,1736256635648,-500.0,0.00019178,2]
[347971566,1736256635657,-500.0,0.00019178,2]
[347971567,1736256635667,-195.78665694,0.00019178,2]
[347971568,1736256635676,-500.0,0.00019178,2]
[347971569,1736256635685,-500.0,0.00019178,2]
[347971570,1736256635695,-500.0,0.00019178,2]
[347971571,1736256635704,-500.0,0.00019178,2]
[347971572,1736256635713,-500.0,0.00019178,2]
[347971573,1736256635723,-500.0,0.00019178,2]
[347971574,1736256635732,-504.6851846,0.00019178,2]
[347971575,1736256635742,-506.86429106,0.00019178,2]
[347971576,1736256635751,-500.0,0.00019178,2]
[347971577,1736256635760,-500.0,0.00019178,2]
[347971578,1736256635772,-500.0,0.00019178,2]
[347971579,1736256635781,-326.14161402,0.00019178,2]
[347971580,1736256635791,-500.0,0.00019178,2]
[347971581,1736256635801,-500.0,0.00019178,2]
[347971582,1736256635811,-512.24818811,0.00019178,2]
[347971583,1736256635820,-500.0,0.00019178,2]
[347971584,1736256635831,-500.0,0.00019178,2]
[347971585,1736256635840,-500.0,0.00019178,2]
[347971586,1736256635850,-500.0,0.00019178,2]
[347971587,1736256635860,-500.0,0.00019178,2]
[347971588,1736256635870,-568.49158188,0.00019178,2]
[347971589,1736256635879,-500.0,0.00019178,2]
[347971590,1736256635889,-500.0,0.00019178,2]
[347971591,1736256635898,-500.0,0.00019178,2]
[347971592,1736256635907,-500.0,0.00019178,2]
[347971593,1736256635916,-500.0,0.00019178,2]
[347971594,1736256635926,-500.0,0.00019178,2]
[347971595,1736256635935,-500.0,0.00019178,2]
[347971596,1736256635945,-423.93375257,0.00019178,2]
[347971597,1736256635954,-500.0,0.00019178,2]
[347971598,1736256635963,-699.68,0.00019178,2]
[347971599,1736256635973,-500.0,0.00019178,2]
[347971600,1736256635982,-500.0,0.00019178,2]
[347971601,1736256635991,-500.0,0.00019178,2]
[347971602,1736256636001,-500.0,0.00019178,2]
[347971603,1736256636010,-500.0,0.00019178,2]
[347971604,1736256636022,-513.41654229,0.00019178,2]
[347971605,1736256636031,-500.0,0.00019178,2]
[347971606,1736256636040,-500.0,0.00019178,2]
[347971607,1736256636049,-1409.45,0.00019178,2]
[347971608,1736256636058,-500.0,0.00019178,2]
[347971609,1736256636068,-644.24592478,0.00019178,2]
[347971610,1736256636079,-152.03393793,0.00019178,2]
[347971611,1736256636089,-500.0,0.00019178,2]
[347971612,1736256636098,-500.00000001,0.00019178,2]
[347971613,1736256636107,-500.0,0.00019178,2]
[347971614,1736256636117,-500.0,0.00019178,2]
[347971615,1736256636126,-500.0,0.00019178,2]
[347971616,1736256636135,-500.0,0.00019178,2]
[347971617,1736256636145,-500.0,0.00019178,2]
[347971618,1736256636154,-500.0,0.00019178,2]
[347971619,1736256636164,-500.0,0.00019178,2]
[347971620,1736256636173,-500.0,0.00019178,2]
[347971621,1736256636183,-500.0,0.00019178,2]
[347971622,1736256636192,-500.0,0.00019178,2]
[347971623,1736256636201,-500.0,0.00019178,2]
[347971624,1736256636210,-500.0,0.00019178,2]
[347971625,1736256636219,-500.0,0.00019178,2]
[347971626,1736256636228,-500.0,0.00019178,2]
[347971627,1736256636238,-500.0,0.00019178,2]
[347971628,1736256636247,-500.0,0.00019178,2]
[347971629,1736256636257,-500.0,0.00019178,2]
[347971630,1736256636266,-500.0,0.00019178,2]
[347971631,1736256636278,-500.0,0.00019178,2]
[347971632,1736256636287,-500.0,0.00019178,2]
[347971633,1736256636296,-500.0,0.00019178,2]
[347971634,1736256636306,-212.19763559,0.00019178,2]
[347971635,1736256636315,-500.0,0.00019178,2]
[347971636,1736256636324,-500.0,0.00019178,2]
[347971637,1736256636333,-500.3425668,0.00019178,2]
[347971638,1736256636343,-322.51110606,0.00019178,2]
[347971639,1736256636352,-801.76,0.00019178,2]
[347971640,1736256636361,-500.0,0.00019178,2]
[347971641,1736256636370,-500.0,0.00019178,2]
[347971642,1736256636380,-500.0,0.00019178,2]
[347971643,1736256636389,-524.82,0.00019178,2]
[347971644,1736256636399,-500.0,0.00019178,2]
[347971645,1736256636407,-500.0,0.00019178,2]
[347971646,1736256636417,-1968.42,0.00019178,2]
[347971647,1736256636426,-500.0,0.00019178,2]
[347971648,1736256636435,-500.0,0.00019178,2]
[347971649,1736256636445,-500.0,0.00019178,2]
[347971650,1736256636454,-500.0,0.00019178,2]
[347971651,1736256636463,-500.0,0.00019178,2]
[347971652,1736256636472,-500.0,0.00019178,2]
[347971653,1736256636482,-500.0,0.00019178,2]
[347971654,1736256636491,-500.0,0.00019178,2]
[347971655,1736256636500,-500.0,0.00019178,2]
[347971656,1736256636510,-500.0,0.00019178,2]
[347971657,1736256636520,-500.0,0.00019178,2]
[347971658,1736256636530,-525.08447721,0.00019178,2]
[347971659,1736256636540,-500.0,0.00019178,2]
[347971660,1736256636549,-513.78033632,0.00019178,2]
[347971661,1736256636559,-197.08290386,0.00019178,2]
[347971662,1736256636569,-591.49,0.00019178,2]
[347971663,1736256636578,-500.0,0.00019178,2]
[347971664,1736256636588,-500.0,0.00019178,2]
[347971665,1736256636597,-500.0,0.00019178,2]
[347971666,1736256636606,-500.0,0.00019178,2]
[347971667,1736256636615,-500.58115671,0.00019178,2]
[347971668,1736256636624,-423.2648378,0.00019178,2]
[347971669,1736256636634,-502.75302765,0.00019178,2]
[347971670,1736256636644,-500.0,0.00019178,2]
[347971671,1736256636654,-500.0,0.00019178,2]
[347971672,1736256636663,-500.0,0.00019178,2]
[347971673,1736256636774,-500.0,0.00019178,2]
[347971674,1736256636785,-500.0,0.00019178,2]
[347971675,1736256636795,-500.0,0.00019178,2]
[347971676,1736256636805,-500.0,0.00019178,2]
[347971677,1736256636814,-500.0,0.00019178,2]
[347971678,1736256636823,-500.0,0.00019178,2]
[347971679,1736256636833,-500.0,0.00019178,2]
[347971680,1736256636843,-500.0,0.00019178,2]
[347971681,1736256636852,-500.0,0.00019178,2]
[347971682,1736256636862,-500.0,0.00019178,2]
[347971683,1736256636871,-500.0,0.00019178,2]
[347971684,1736256636881,-500.0,0.00019178,2]
[347971685,1736256636891,-500.0,0.00019178,2]
[347971686,1736256636901,-947.15,0.00019178,2]
[347971687,1736256636910,-10580.49,0.00019178,2]
[347971688,1736256636919,-500.0,0.00019178,2]
[347971689,1736256636928,-476.38857909,0.00019178,2]
[347971690,1736256637202,-23.61142091,0.00019178,2]
[347971691,1736256637212,-500.0,0.00019178,2]
[347971692,1736256637221,-1225.79105287,0.00019178,2]
[347971693,1736256637233,-588.10894713,0.00019178,2]
[347971694,1736256637243,-500.0,0.00019178,2]
[347971695,1736256637254,-500.0,0.00019178,2]
[347971696,1736256637264,-500.0,0.00019178,2]
[347971697,1736256637277,-791.49,0.00019178,2]
[347971698,1736256637287,-333.48678858,0.00019178,2]
[347971699,1736256637310,-166.51321142,0.00019178,2]
[347971700,1736256637320,-1150.53,0.00019178,2]
[347971701,1736256637330,-500.0,0.00019178,2]
[347971702,1736256637340,-258.31421789,0.00019178,2]
[347971741,1736256638559,-447.72129026,0.00019173,2]
[347971742,1736256638572,-53.15715842,0.00019173,2]
[347971743,1736256638581,-241.68578211,0.00019178,2]
[347971744,1736256638591,-500.0,0.00019178,2]
[347971746,1736256638600,-500.0,0.00019178,2]
[347971747,1736256638609,-500.0,0.00019178,2]
[347971749,1736256638619,-344.56049557,0.00019178,2]
[347971751,1736256638645,-160.81929823,0.00019178,2]
[347971752,1736256638655,-589.45,0.00019178,2]
[347971753,1736256638664,-500.0,0.00019178,2]
[347971754,1736256638673,-500.0,0.00019178,2]
[347971755,1736256638683,-500.0,0.00019178,2]
[347971756,1736256638692,-500.0,0.00019178,2]
[347971757,1736256638701,-500.0,0.00019178,2]
[347971758,1736256638710,-500.0,0.00019178,2]
[347971759,1736256638720,-500.0,0.00019178,2]
[347971760,1736256638729,-89.41510119,0.00019178,2]
[347971764,1736256640651,-410.58489881,0.00019178,2]
[347971765,1736256640661,-500.0,0.00019178,2]
[347971766,1736256640671,-500.0,0.00019178,2]
[347971767,1736256640680,-500.0,0.00019178,2]
[347971768,1736256640690,-500.0,0.00019178,2]
[347971769,1736256640699,-500.0,0.00019178,2]
[347971770,1736256640709,-1915.25,0.00019178,2]
[347971771,1736256640718,-500.0,0.00019178,2]
[347971772,1736256640727,-500.0,0.00019178,2]
[347971773,1736256640736,-500.0,0.00019178,2]
[347971774,1736256640745,-500.0,0.00019178,2]
[347971775,1736256640754,-500.0,0.00019178,2]
[347971776,1736256640763,-10497.48,0.00019178,2]
[347971777,1736256640774,-500.0,0.00019178,2]
[347971778,1736256640784,-500.0,0.00019178,2]
[347971779,1736256640793,-500.0,0.00019178,2]
[347971780,1736256640802,-500.0,0.00019178,2]
[347971781,1736256640812,-500.0,0.00019178,2]
[347971782,1736256640821,-500.0,0.00019178,2]
[347971783,1736256640831,-500.0,0.00019178,2]
[347971784,1736256640840,-608.96,0.00019178,2]
[347971785,1736256640850,-500.0,0.00019178,2]
[347971786,1736256640859,-500.0,0.00019178,2]
[347971787,1736256640869,-500.0,0.00019178,2]
[347971788,1736256640879,-500.0,0.00019178,2]
[347971789,1736256640889,-500.0,0.00019178,2]
[347971790,1736256640898,-500.0,0.00019178,2]
[347971791,1736256640907,-500.0,0.00019178,2]
[347971792,1736256641034,-500.0,0.00019178,2]
[347971793,1736256641044,-500.0,0.00019178,2]
[347971794,1736256641053,-500.53091454,0.00019178,2]
[347971795,1736256641063,-2229.21,0.00019178,2]
[347971796,1736256641073,-500.0,0.00019178,2]
[347971797,1736256641087,-500.0,0.00019178,2]
[347971798,1736256641096,-500.0,0.00019178,2]
[347971799,1736256641106,-500.0,0.00019178,2]
[347971800,1736256641115,-655.59,0.00019178,2]
[347971801,1736256641124,-500.0,0.00019178,2]
[347971802,1736256641134,-1112.99,0.00019178,2]
[347971803,1736256641143,-310.2857313,0.00019178,2]
[347971804,1736256641152,-500.0,0.00019178,2]
[347971805,1736256641163,-508.01580702,0.00019178,2]
[347971806,1736256641173,-500.0,0.00019178,2]
[347971807,1736256641183,-1416.61,0.00019178,2]
[347971808,1736256641192,-500.0,0.00019178,2]
[347971809,1736256641202,-500.0,0.00019178,2]
[347971810,1736256641211,-500.0,0.00019178,2]
[347971811,1736256641220,-4908.8,0.00019178,2]
[347971812,1736256641230,-500.0,0.00019178,2]
[347971813,1736256641239,-1588.24,0.00019178,2]
[347971814,1736256641249,-1478.01,0.00019178,2]
[347971815,1736256641259,-500.0,0.00019178,2]
[347971816,1736256641269,-1214.45,0.00019178,2]
[347971817,1736256641281,-957.57,0.00019178,2]
[347971818,1736256641290,-500.0,0.00019178,2]
[347971819,1736256641300,-500.0,0.00019178,2]
[347971820,1736256641310,-500.0,0.00019178,2]
[347971821,1736256641320,-500.74306221,0.00019178,2]
[347971822,1736256641329,-594.89545264,0.00019178,2]
[347971823,1736256641339,-884.32,0.00019178,2]
[347971824,1736256641349,-500.0,0.00019178,2]
[347971825,1736256641358,-777.44,0.00019178,2]
[347971826,1736256641367,-1105.62,0.00019178,2]
[347971827,1736256641377,-500.0,0.00019178,2]
[347971828,1736256641386,-500.0,0.00019178,2]
[347971829,1736256641395,-500.0,0.00019178,2]
[347971830,1736256641404,-500.0,0.00019178,2]
[347971831,1736256641414,-500.0,0.00019178,2]
[347971832,1736256641423,-500.0,0.00019178,2]
[347971833,1736256641433,-500.0,0.00019178,2]
[347971834,1736256641442,-500.0,0.00019178,2]
[347971835,1736256641451,-500.0,0.00019178,2]
[347971836,1736256641460,-500.0,0.00019178,2]
[347971837,1736256641470,-500.0,0.00019178,2]
[347971838,1736256641479,-1191.52,0.00019178,2]
[347971839,1736256641488,-500.0,0.00019178,2]
[347971840,1736256641498,-500.0,0.00019178,2]
[347971841,1736256641507,-500.0,0.00019178,2]
[347971842,1736256641517,-2417.52,0.00019178,2]
[347971843,1736256641528,-500.0,0.00019178,2]
[347971844,1736256641537,-500.0,0.00019178,2]
[347971845,1736256641546,-1194.52,0.00019178,2]
[347971846,1736256641557,-853.0,0.00019178,2]
[347971847,1736256641567,-500.0,0.00019178,2]
[347971848,1736256641577,-1136.48,0.00019178,2]
[347971849,1736256641586,-500.0,0.00019178,2]
[347971850,1736256641595,-500.0,0.00019178,2]
[347971851,1736256641605,-500.0,0.00019178,2]
[347971852,1736256641615,-500.0,0.00019178,2]
[347971853,1736256641624,-500.0,0.00019178,2]
[347971854,1736256641633,-500.0,0.00019178,2]
[347971855,1736256641643,-500.0,0.00019178,2]
[347971856,1736256641652,-3611.5,0.00019178,2]
[347971857,1736256641662,-1060.94,0.00019178,2]
[347971858,1736256641671,-500.0,0.00019178,2]
[347971859,1736256641680,-623.13858028,0.00019178,2]
[347971860,1736256641690,-500.0,0.00019178,2]
[347971861,1736256641699,-500.0,0.00019178,2]
[347971862,1736256641709,-500.0,0.00019178,2]
[347971863,1736256641718,-500.0,0.00019178,2]
[347971864,1736256641728,-500.0,0.00019178,2]
[347971865,1736256641737,-500.0,0.00019178,2]
[347971866,1736256641747,-500.0,0.00019178,2]
[347971867,1736256641756,-500.0,0.00019178,2]
[347971868,1736256641766,-500.0,0.00019178,2]
[347971869,1736256641777,-500.0,0.00019178,2]
[347971870,1736256641786,-500.0,0.00019178,2]
[347971871,1736256641795,-721.95,0.00019178,2]
[347971872,1736256641804,-500.0,0.00019178,2]
[347971873,1736256641814,-413.44634226,0.00019178,2]
[347971874,1736256641823,-842.48,0.00019178,2]
[347971875,1736256641832,-500.0,0.00019178,2]
[347971876,1736256641842,-500.0,0.00019178,2]
[347971877,1736256641852,-1116.51,0.00019178,2]
[347971878,1736256641861,-288.77917693,0.00019178,2]
[347971879,1736256641870,-503.25247626,0.00019178,2]
[347971880,1736256641879,-1524.44,0.00019178,2]
[347971881,1736256641889,-696.71,0.00019178,2]
[347971882,1736256641898,-500.0,0.00019178,2]
[347971883,1736256641907,-500.0,0.00019178,2]
[347971884,1736256641917,-520.62,0.00019178,2]
[347971885,1736256641926,-501.29567966,0.00019178,2]
[347971886,1736256641936,-500.0,0.00019178,2]
[347971887,1736256641946,-500.0,0.00019178,2]
[347971888,1736256641955,-500.0,0.00019178,2]
[347971889,1736256641964,-500.0,0.00019178,2]
[347971890,1736256641974,-500.0,0.00019178,2]
[347971891,1736256641983,-500.0,0.00019178,2]
[347971892,1736256641992,-500.0,0.00019178,2]
[347971893,1736256642002,-500.0,0.00019178,2]
[347971894,1736256642011,-500.0,0.00019178,2]
[347971895,1736256642020,-500.0,0.00019178,2]
[347971896,1736256642029,-500.0,0.00019178,2]
[347971897,1736256642038,-500.0,0.00019178,2]
[347971898,1736256642047,-500.0,0.00019178,2]
[347971899,1736256642058,-500.0,0.00019178,2]
[347971900,1736256642067,-1885.2,0.00019178,2]
[347971901,1736256642077,-5865.9,0.00019178,2]
[347971902,1736256642088,-506.42845187,0.00019178,2]
[347971903,1736256642097,-500.0,0.00019178,2]
[347971904,1736256642106,-518.85,0.00019178,2]
[347971905,1736256642115,-500.0,0.00019178,2]
[347971906,1736256642124,-500.0,0.00019178,2]
[347971907,1736256642134,-500.0,0.00019178,2]
[347971908,1736256642144,-500.0,0.00019178,2]
[347971909,1736256642153,-500.0,0.00019178,2]
[347971910,1736256642162,-500.0,0.00019178,2]
[347971911,1736256642172,-2287.92,0.00019178,2]
[347971912,1736256642181,-880.34,0.00019178,2]
[347971913,1736256642190,-1329.15,0.00019178,2]
[347971914,1736256642199,-500.0,0.00019178,2]
[347971915,1736256642208,-500.0,0.00019178,2]
[347971916,1736256642217,-500.0,0.00019178,2]
[347971917,1736256642226,-500.0,0.00019178,2]
[347971918,1736256642235,-500.0,0.00019178,2]
[347971919,1736256642244,-500.0,0.00019178,2]
[347971920,1736256642255,-500.0,0.00019178,2]
[347971921,1736256642264,-497.78354124,0.00019178,2]
[347972258,1736256646673,-195.5189044,0.00018986,2]
[347972260,1736256646682,-1391.93078907,0.00018986,2]
[347972262,1736256646691,-500.0,0.00019173,2]
[347972264,1736256646700,-2.21645876,0.00019178,2]
[347972266,1736256646710,-500.0,0.00019178,2]
[347972268,1736256646719,-500.0,0.00019178,2]
[347972270,1736256646729,-503.25597427,0.00019178,2]
[347972272,1736256646738,-500.0,0.00019178,2]
[347972274,1736256646747,-2169.98,0.00019178,2]
[347972276,1736256646756,-989.63,0.00019178,2]
[347972278,1736256646766,-150.03,0.00019178,2]
[347972280,1736256646775,-500.0,0.00019178,2]
[347972282,1736256646784,-500.0,0.00019178,2]
[347972284,1736256646794,-86.0250785,0.00019178,2]
[347973943,1736257320456,384.24438465,0.00014862,2]
[347973944,1736257320490,115.75561535,0.00014862,2]
[347973992,1736257378651,394.086222,0.00013973,2]
[347974629,1736257809165,3498.0,0.000228,120]
[347975122,1736257831938,-150.0,0.000174,2]
[347975123,1736257831948,-191.1763178,0.00017402,2]
[347975124,1736257831957,-604.80965965,0.00017602,2]
[347975125,1736257831971,-300.0,0.00017814,2]
[347975126,1736257831980,-18938.00398478,0.00017815,2]
[347975325,1736257837818,-2945.94820498,0.00017815,2]
[347976693,1736257884772,3500.0,0.00025,120]
[347977516,1736257949175,1000.0,0.00025,120]
[347977517,1736258255548,538.4,0.00025,120]
[347977518,1736258274114,388.05947,0.00013973,2]
[347977566,1736259032243,-761.48901738,0.00015477,2]
[347977568,1736259032252,-1707.19587738,0.00015633,2]
[347977569,1736259032261,-2265.7750863,0.00016643,2]
[347977570,1736259032271,-300.0,0.00017622,2]
[347977572,1736259032280,-10966.94064239,0.00017623,2]
[347977574,1736259032289,-11846.5288258,0.00017635,2]
[347977580,1736259032390,-10432.06832518,0.00017635,2]
[347977581,1736259032401,-1528.58400604,0.00017635,2]
[347977582,1736259032479,-5224.27008081,0.00017635,2]
[347977873,1736259038036,-500.0,0.00017634,2]
[347977875,1736259038046,-224.694832,0.00017634,2]
[347978102,1736259040249,-69.07273085,0.00017634,2]
[347978104,1736259040259,-300.08501789,0.00017634,2]
[347978393,1736259043262,-199.91498211,0.00017634,2]
[347978396,1736259043272,-229.60472848,0.00017634,2]
[347978398,1736259043282,-650.55210854,0.00017634,2]
[347978400,1736259043293,-500.0,0.00017634,2]
[347978402,1736259043304,-500.0,0.00017634,2]
[347978404,1736259043314,-500.0,0.00017634,2]
[347978406,1736259043324,-500.0,0.00017634,2]
[347978408,1736259043333,-500.0,0.00017634,2]
[347978410,1736259043347,-500.0,0.00017634,2]
[347978412,1736259043357,-500.0,0.00017634,2]
[347978414,1736259043366,-500.0,0.00017634,2]
[347978416,1736259043376,-457.44488245,0.00017634,2]
[347978712,1736259046419,-42.55511755,0.00017634,2]
[347978714,1736259046429,-300.0,0.00017634,2]
[347978716,1736259046438,-500.0,0.00017634,2]
[347978718,1736259046448,-526.1227741,0.00017634,2]
[347978720,1736259046457,-500.0,0.00017634,2]
[347978722,1736259046466,-163.90042536,0.00017634,2]
[347978724,1736259046476,-34162.41935126,0.00017635,2]
[347978726,1736259046486,-8710.4552129,0.00017635,2]
[347978728,1736259046495,-11865.59017157,0.00017635,2]
[347980767,1736259277489,368.656496,0.00013973,2]
[347980779,1736260128250,350.223671,0.00013973,2]
[347980780,1736260184881,3292.80412262,0.00015001,2]
[347980822,1736260232438,-394.0,0.00015298,2]
[347980824,1736260232448,-176.00143,0.00016746,2]
[347980826,1736260232457,-300.0,0.00016928,2]
[347980828,1736260232467,-9189.99857,0.00016929,2]
[347980834,1736260232526,-6834.2480032,0.00016929,2]
[347980836,1736260232536,-13199.13035574,0.00017319,2]
[347980838,1736260232546,-1042.48773404,0.00017575,2]
[347980840,1736260232558,-352.9591083,0.000176,2]
[347980842,1736260232568,-352.9591083,0.000176,2]
[347980844,1736260232577,-352.9591083,0.000177,2]
[347980846,1736260232587,-352.9591083,0.000177,2]
[347980848,1736260232598,-152.0,0.00017807,2]
[347980850,1736260232607,-4823.96853674,0.000179,2]
[347980852,1736260232617,-4823.96853654,0.000179,2]
[347980854,1736260232626,-4823.96853654,0.000179,2]
[347980856,1736260232636,-4823.96853654,0.000179,2]
[347980858,1736260232646,-4823.96853654,0.000179,2]
[347980861,1736260232656,-9961.62513527,0.00018,2]
[347980864,1736260232665,-278.874569,0.000181,2]
[347980866,1736260232675,-4823.96853654,0.00018107,2]